Cogmind - Beta 17 @@@ ROGUE MODE // 2026.08.21 @ 22:49:09 Player: Boatmurdered Result: Destroyed by B-75 Beast with Heavy Plasma Cannon Performance ------------- Evolutions (3) 1500 Regions Visited (14) 2800 Robots Destroyed (140) 700 Value Destroyed (4567) 4567 Prototype IDs (44) 880 Alien Tech Used (0) 0 Bonus (1337) 1337 TOTAL SCORE: 11784 Bonus ------- Follower Combat Kills 237 Entered Garrisons 200 Aligned with FarCom 300 Met Imprinter 300 Acquired ECA 300 Cogmind --------- Core Integrity 0/700 Matter 300/300 Energy 95/100 System Corruption 0% Temperature Cool (12) Movement Flying (32) Location -6/Proximity Caves Parts ------- > --- POWER (1) -------- (None) > --- PROPULSION (4) --- VTOL Module Improved Cesium-ion Thruster > --- UTILITY (5) ------ Focal Shield Makeshift Hacking Suite System Shield Makeshift System Shield > --- WEAPON (3) ------- Spear CR-A16's Pointy Stick > --- INVENTORY (5) ---- Encrypted Comm Array Arc Projector Peak State ------------ > --- POWER ------------ Heavy Ion Engine > --- PROPULSION ------- Advanced Treads Advanced Treads Advanced Treads > --- UTILITY ---------- Large Storage Unit Hacking Suite Decoy Drone Bay > --- WEAPON ----------- Beamcaster AWS/Thermal > --- INVENTORY -------- Heavy Ion Engine Light Treads Light Treads Advanced Treads Advanced Treads Seismic Detector Hardened Medium Armor Plating Improved Light Armor Plating Hardlight Generator Hacking Suite System Shield Beamcaster Assault Cannon Rocket Launcher Missile Launcher [Rating: 55] Favorites ----------- Power Heavy Ion Engine Engine Heavy Ion Engine Power Core Light Nuclear Core Propulsion Light Treads Treads Light Treads Flight Unit Improved Cesium-ion Thruster Utility Hacking Suite Device Seismic Detector Storage Large Storage Unit Processor Advanced Targeting Computer Hackware Hacking Suite Protection Hardened Medium Armor Plating Weapon Beamcaster Energy Gun Beamcaster Ballistic Gun Assault Rifle Ballistic Cannon Assault Cannon Launcher Rocket Launcher Impact Weapon Hammer Piercing Weapon Spear Special Melee Weapon Improved Datajack Build | -11 -10 -10 -9 -9 -9 -8 -8 -8 -8 -7 -7 -7 -7 -6 ------- Run | Yrd Mat Min Mat Min Exi Min Mat Sto Gar Fac Low Low Zio Pro Slots Evolved 6 | . . . 2 . . . 2 . . 2 . . . . Power . | . . . . . . . . . . . . . . . Propulsion 2 | . . . . . . . 1 . . 1 . . . . Utility 3 | . . . 1 . . . 1 . . 1 . . . . Weapon 1 | . . . 1 . . . . . . . . . . . Parts Attached 113 | 8 12 1 29 4 2 1 5 8 1 17 5 6 11 3 Power 13 | 1 3 . 4 . . . 1 . . 2 . 1 1 . Engine 11 | 1 3 . 4 . . . 1 . . 1 . 1 . . Core 2 | . . . . . . . . . . 1 . . 1 . Reactor . | . . . . . . . . . . . . . . . Propulsion 31 | 2 2 . 8 . . . 2 6 . 6 2 1 1 1 Treads 27 | 2 2 . 8 . . . 2 6 . 5 2 . . . Leg . | . . . . . . . . . . . . . . . Wheel . | . . . . . . . . . . . . . . . Hover . | . . . . . . . . . . . . . . . Flight 4 | . . . . . . . . . . 1 . 1 1 1 Utility 32 | 2 2 1 7 1 1 . 2 . . 3 3 3 6 1 Device 11 | 1 1 . 1 . . . 2 . . 1 2 . 2 1 Storage 5 | 1 1 1 1 . 1 . . . . . . . . . Processor 1 | . . . . . . . . . . 1 . . . . Hackware 6 | . . . 1 . . . . . . . . 2 3 . Protection 9 | . . . 4 1 . . . . . 1 1 1 1 . Artifact . | . . . . . . . . . . . . . . . Weapon 37 | 3 5 . 10 3 1 1 . 2 1 6 . 1 3 1 Energy Gun 6 | 2 . . 2 . 1 . . 1 . . . . . . Energy Cannon . | . . . . . . . . . . . . . . . Ballistic Gun 20 | 1 5 . 7 1 . . . . . 3 . 1 2 . Ballistic Cannon 1 | . . . . . . . . . 1 . . . . . Launcher 4 | . . . . 2 . 1 . . . 1 . . . . Special Weapon . | . . . . . . . . . . . . . . . Impact Weapon 2 | . . . 1 . . . . . . 1 . . . . Slashing Weapon . | . . . . . . . . . . . . . . . Piercing Weapon 2 | . . . . . . . . . . . . . 1 1 Special Melee Weapon 2 | . . . . . . . . 1 . 1 . . . . Unidentified Prototypes 4 | . . . . . . . 1 . . . . 1 2 . Parts Lost 29 | . . . . . . . . 1 . . . 22 . 6 Power 3 | . . . . . . . . . . . . 2 . 1 Propulsion 9 | . . . . . . . . . . . . 8 . 1 Utility 7 | . . . . . . . . . . . . 5 . 2 Weapon 10 | . . . . . . . . 1 . . . 7 . 2 Highest Loss Streak 9 | . . . . . . . . 1 . . . 9 . 2 To Critical Strikes . | . . . . . . . . . . . . . . . Average Backups 12 | 2 8 10 13 14 14 14 14 14 14 14 14 10 4 3 Power . | . 1 1 1 1 1 1 1 1 1 1 1 . . . Propulsion 3 | . 1 3 3 4 4 4 3 3 6 5 5 3 . . Utility 3 | . . 1 2 3 4 4 5 5 4 4 4 3 . . Weapon 4 | 1 4 5 6 5 5 5 4 4 2 3 3 1 2 2 Tool/Special . | . . . . . . . . . . . . . . . Unused Backups 20 | . 3 . 2 1 1 . 5 4 . 2 . . 1 1 Power 4 | . 1 . 2 . . . 1 . . . . . . . Propulsion 4 | . . . . . . . 1 3 . . . . . . Utility 4 | . . . . . . . 2 1 . 1 . . . . Weapon 8 | . 2 . . 1 1 . 1 . . 1 . . 1 1 Tool/Special . | . . . . . . . . . . . . . . . Average Slot Usage (%) 91 | . 99 100 98 100 94 88 84 80 88 98 99 82 50 74 Engine 9 | . 14 14 10 11 11 11 9 8 9 7 7 6 . . Treads 24 | . 27 28 21 22 22 22 26 26 27 30 30 25 . . Device 7 | . 14 14 7 7 4 5 8 9 9 7 7 3 . 1 Storage 9 | . 14 14 11 11 11 11 9 9 9 7 7 6 . . Processor 1 | . . . . . . . . . . 6 7 6 . . Hackware 9 | . . . 10 11 11 11 9 9 9 7 7 7 26 27 Protection 3 | . . . 3 3 6 5 3 . . 6 6 3 1 5 Energy Gun 10 | . . . 11 11 15 17 16 13 18 14 6 3 . . Ballistic Gun 10 | . 27 28 21 12 12 . . . . 6 15 9 6 12 Launcher 1 | . . . . 9 . 4 1 . . . . . . . Peak Build Rating 55 | 7 8 10 24 24 35 36 48 55 55 54 48 45 49 43 Average Rating 33 | 6 7 8 20 22 28 34 44 49 47 46 46 34 26 37 On Entrance 28 | . 7 8 10 23 24 35 33 48 55 47 47 45 12 39 Avg Prop Armor Cover (%) 5 | . . . 7 . . . . . . 5 . . . . Naked Turns . | . . . . . . . . . . . . . . . Heaviest Build 61 | 13 20 50 61 44 44 46 55 55 57 59 53 53 13 14 Greatest Support 88 | 40 40 40 40 40 40 40 60 66 66 88 88 88 14 18 Greatest Overweight (x) 4 | 2 . 1 2 1 1 1 . . . . . 4 . . Average Overweight (x) . | . . . . . . 1 . . . . . . . . Largest Inventory Capacity 20 | 8 10 20 20 15 15 15 15 15 15 15 15 15 5 5 Average Capacity 13 | 7 8 16 16 15 15 15 15 15 15 15 15 14 5 5 Most Carried 20 | 4 10 18 20 15 15 15 15 15 15 15 15 15 5 4 Average Carried 13 | 2 8 13 15 14 15 15 14 14 14 14 14 10 4 3 Final Capacity 20 | 8 10 20 15 15 15 15 15 15 15 15 15 5 5 5 Final Carried 18 | 4 10 18 15 15 15 15 15 15 15 15 15 4 4 2 Class Distribution -------------------- 18% | Skirmisher 16% | Scavenger-Skirmisher 15% | Scavenger-Gunner 11% | Scavenger-Tank 10% | Mutant 8% | Scavenger-Mutant 6% | Hacker-Mutant 4% | Commander-Skirmisher 3% | Tank Dominant Class ---------------- Mutant | -10/Materials Mutant | -10/Mines Scavenger-Gunner | -9/Materials Scavenger-Gunner | -9/Mines Scavenger-Tank | -9/Exiles Scavenger-Skirmisher | -8/Mines Scavenger-Skirmisher | -8/Materials Commander-Skirmisher | -8/Storage Skirmisher | -8/Garrison Skirmisher | -7/Factory Tank | -7/Lower Caves Mutant | -7/Lower Caves Hacker-Mutant | -7/Zion Hacker-Mutant | -6/Proximity Caves Resources | -11 -10 -10 -9 -9 -9 -8 -8 -8 -8 -7 -7 -7 -7 -6 ----------- Run | Yrd Mat Min Mat Min Exi Min Mat Sto Gar Fac Low Low Zio Pro Matter Collected 3578 | 301 526 42 730 104 . 65 86 260 65 446 361 430 75 87 Remotely . | . . . . . . . . . . . . . . . Salvage Created 5255 | 154 647 . 986 56 . 90 536 819 183 901 195 649 . 39 Parts 295 | 14 38 . 66 4 . 5 25 53 5 45 7 30 . 3 Haulers Intercepted 8 | . 1 . 3 . . . 1 2 . 1 . . . . Recyclers Shooed 4 | 1 . 1 1 . . . . 1 . . . . . . Parts Field Recycled . | . . . . . . . . . . . . . . . Retrieved Matter . | . . . . . . . . . . . . . . . Parts Self-Destructed 38 | . . . . . . . . . . . 4 32 . 2 Prevented . | . . . . . . . . . . . . . . . Parts Restored . | . . . . . . . . . . . . . . . Kills | -11 -10 -10 -9 -9 -9 -8 -8 -8 -8 -7 -7 -7 -7 -6 ------- Run | Yrd Mat Min Mat Min Exi Min Mat Sto Gar Fac Low Low Zio Pro Combat Hostiles Destroyed 102 | . 13 . 17 3 . 5 7 12 3 15 8 17 . 2 Guns 82 | . 13 . 17 3 . 3 7 12 2 8 3 12 . 2 Cannons 6 | . . . . . . . . . 1 1 . 4 . . AOE 12 | . . . . . . 2 . . . 4 5 1 . . Classes Destroyed 15 | 2 6 . 3 1 . 1 . . 1 1 . . . . Worker 7 | . 1 . 1 . . . 2 1 . 2 . . . . Builder 1 | . . . 1 . . . . . . . . . . . Tunneler 3 | 3 . . . . . . . . . . . . . . Hauler 8 | . 1 . 3 . . . 1 2 . 1 . . . . Recycler 5 | 1 1 . 1 . . . . . . 2 . . . . Operator 3 | . 2 . . . . . . 1 . . . . . . Watcher 12 | . 3 . 2 . . . 2 2 . 3 . . . . Swarmer 29 | . 5 . 5 . . 4 . . . 4 1 8 . 2 Grunt 30 | . 8 . 2 . . . 2 4 1 4 4 5 . . Brawler 3 | . . . . . . . . . 1 . 1 1 . . Duelist 5 | . . . 1 . . . . . 1 . 1 2 . . Sentry 26 | . . . 9 1 . . 4 7 1 2 1 1 . . Hunter 4 | . . . . . . 1 1 1 . 1 . . . . Programmer 4 | . . . . . . . . . . 4 . . . . Assembled 2 | . . . . 2 . . . . . . . . . . Best Kill Streak 7 | 2 5 . 4 2 . 4 4 3 2 5 6 7 . 2 Combat Bots Only 7 | . 5 . 3 2 . 4 3 2 2 5 6 7 . 2 Max Kills in Single Turn 3 | 1 2 . 2 1 . 3 1 1 2 3 2 1 . 1 Gunslinging 1 | . . . 1 . . . . . . . . . . . Exploded 3 | . . . . . . 2 . . . 3 2 1 . . Melee . | . . . . . . . . . . . . . . . Uniques/NPCs Destroyed . | . . . . . . . . . . . . . . . Combat | -11 -10 -10 -9 -9 -9 -8 -8 -8 -8 -7 -7 -7 -7 -6 -------- Run | Yrd Mat Min Mat Min Exi Min Mat Sto Gar Fac Low Low Zio Pro Hostile Shots Fired 631 | . 64 . 74 9 . 12 11 24 . 106 67 170 . 94 Missed 175 | . 15 . 14 3 . 4 4 5 . 32 17 34 . 47 Hits 456 | . 49 . 60 6 . 8 7 19 . 74 50 136 . 47 Melee 21 | . . . 5 . . . . . . . 1 15 . . Projectile 435 | . 49 . 55 6 . 8 7 19 . 74 49 121 . 47 AOE 4 | . . . . . . 3 . . . 1 . . . . Critical Strikes 15 | . . . 3 . . . 1 . . 2 3 6 . . Part Disruptions 2 | . . . 1 . . . . . . 1 . . . . Damage Taken 7027 | . 554 . 939 75 . 206 95 425 . 847 948 2368 . 570 Core 1078 | . 130 . 178 14 . 10 11 8 . 12 43 496 . 176 Absorbed by Shields 104 | . . . . . . . 12 . . . 4 88 . . Ignored by Resistances 42 | . . . . . . . . . . . . . . 42 Regen/Repaired (Parts) 524 | . 52 . 115 . . . . 108 . 249 . . . . Core Remaining (%) 73 | 100 . 48 . . . 49 . . 96 . . . . . Volleys Fired 275 | 7 67 1 56 5 . 4 6 16 7 49 16 38 . 3 Largest 3 | 1 2 2 3 3 . 1 1 1 3 3 3 3 . 2 Hottest 187 | 20 40 40 148 121 . 75 75 75 187 187 131 131 . 48 Shots Fired 701 | 7 134 2 158 9 . 22 34 59 19 133 37 81 . 6 Gun 661 | 7 134 2 158 9 . 21 34 59 12 127 31 61 . 6 Cannon 28 | . . . . . . . . . 7 3 . 18 . . Launcher 12 | . . . . . . 1 . . . 3 6 2 . . Special . | . . . . . . . . . . . . . . . Kinetic 389 | 7 134 2 108 4 . . . . 7 35 25 61 . 6 Thermal 300 | . . . 50 5 . 21 34 59 12 95 6 18 . . Explosive 12 | . . . . . . 1 . . . 3 6 2 . . Electromagnetic . | . . . . . . . . . . . . . . . Robot Hit Streak 22 | 7 9 1 17 3 . 5 8 12 10 22 9 18 . 2 Robot Miss Streak 8 | . 7 1 8 2 . 5 3 2 2 3 1 4 . 7 Penetration Max . | . . . . . . . . . . . . . . . Secondary Targets 9 | . 3 . 2 . . . . . . 1 . 3 . . Max Gunslinging Chain 1 | . 1 . 1 . . . . . . 1 . 1 . . Autonomous 86 | . . . . . . 18 26 41 1 . . . . . Shots Hit Robots 469 | 7 84 1 94 3 . 10 26 53 11 92 28 54 . 6 Core Hits 218 | 5 32 . 37 3 . 6 14 20 4 37 27 29 . 4 Critical Kills 2 | . . . . . . . . . . . . 2 . . Critical Parts Destroyed . | . . . . . . . . . . . . . . . Critical Strikes 14 | . . . 2 . . . . . 1 7 . 4 . . Burn 11 | . . . 2 . . . . . 1 7 . 1 . . Destroy 2 | . . . . . . . . . . . . 2 . . Blast 1 | . . . . . . . . . . . . 1 . . Melee Attacks 9 | . . . 1 . . . . 4 . 1 . . . 3 Impact 1 | . . . 1 . . . . . . . . . . . Slashing . | . . . . . . . . . . . . . . . Piercing 3 | . . . . . . . . . . . . . . 3 Sneak Attacks 5 | . . . . . . . . 4 . 1 . . . . Combat Hostiles . | . . . . . . . . . . . . . . . Follow-up Attacks 1 | . . . . . . . . . . . . . . 1 Damage Inflicted 11009 | 95 1228 11 1665 65 . 372 729 1281 268 2364 1407 1374 . 150 Guns 8584 | 95 1069 11 1541 65 . 303 729 1281 174 1818 500 912 . 86 Cannons 398 | . . . . . . . . . 94 74 . 230 . . Explosions 1929 | . 159 . 124 . . 69 . . . 438 907 232 . . Melee 64 | . . . . . . . . . . . . . . 64 Ramming 34 | . . . . . . . . . . 34 . . . . Kinetic 3744 | 95 1069 11 773 . . . . . 94 388 389 839 . 86 Thermal 5412 | . 159 . 783 65 . 303 729 1281 174 1504 111 303 . . Explosive 1646 | . . . . . . 69 . . . 438 907 232 . . Electromagnetic 109 | . . . 109 . . . . . . . . . . . Impact . | . . . . . . . . . . . . . . . Slashing . | . . . . . . . . . . . . . . . Piercing 64 | . . . . . . . . . . . . . . 64 Highest Corruption 7 | . . . . . . . 2 2 2 3 3 7 7 . Average Corruption 2 | . . . . . . . 2 2 2 2 3 4 7 . Corruption Purged . | . . . . . . . . . . . . . . . Corruption Blocked . | . . . . . . . . . . . . . . . Effects 126 | . . . . . . . 11 27 14 45 14 15 . . Message Errors 25 | . . . . . . . . 6 4 7 4 4 . . Matter Fused 25 | . . . . . . . 4 2 2 13 2 2 . . Heat Flow Errors 15 | . . . . . . . 2 4 1 5 2 1 . . Energy Discharges 20 | . . . . . . . 3 5 2 6 3 1 . . Parts Rejected 1 | . . . . . . . . 1 . . . . . . Parts Fused 3 | . . . . . . . . 1 . 2 . . . . Data Loss (minor) 9 | . . . . . . . . 3 1 3 . 2 . . Data Loss (major) 14 | . . . . . . . . 2 4 5 2 1 . . Misfires 11 | . . . . . . . 2 2 . 3 1 3 . . Alerts 2 | . . . . . . . . 1 . . . 1 . . Weapon Failures 1 | . . . . . . . . . . 1 . . . . Overload Shots . | . . . . . . . . . . . . . . . Overflow Damage 173 | . 89 . . . . . . . . 18 20 46 . . Projectiles . | . . . . . . . . . . . . . . . Explosions 173 | . 89 . . . . . . . . 18 20 46 . . Melee . | . . . . . . . . . . . . . . . Knockbacks 2 | . . . . . . . . . . 1 . 1 . . Impact 1 | . . . . . . . . . . 1 . . . . Kinetic 1 | . . . . . . . . . . . . 1 . . Secondary . | . . . . . . . . . . . . . . . Self-Inflicted Damage 147 | . . . 58 . . . . . . . 33 56 . . Shots 4 | . . . 2 . . . . . . . 1 1 . . Rammed 5 | . . . . . . . . . . 5 . . . . Targets Rammed 6 | . . . . . . . . . . 6 . . . . Kicked . | . . . . . . . . . . . . . . . Crushed 1 | . . . . . . . . . . 1 . . . . Highest Temperature 366 | . 9 . 317 72 . 118 129 237 286 312 316 366 . 7 Average Temperature 101 | . 3 . 96 36 . 59 35 49 124 111 124 149 . 4 Received Heat Transfer 1908 | . 261 . 201 . . 36 42 117 . 165 279 705 . 102 Effects 5 | . . . 3 . . . . . . . . 2 . . Energy Bleed 3 | . . . 1 . . . . . . . . 2 . . Interference 1 | . . . 1 . . . . . . . . . . . Short Circuit 1 | . . . 1 . . . . . . . . . . . Siege Activations . | . . . . . . . . . . . . . . . Martial Activations . | . . . . . . . . . . . . . . . Shielding Activations . | . . . . . . . . . . . . . . . Robots Disrupted . | . . . . . . . . . . . . . . . Combat Hostiles . | . . . . . . . . . . . . . . . Robots Corrupted . | . . . . . . . . . . . . . . . Combat Hostiles . | . . . . . . . . . . . . . . . Parts Fried . | . . . . . . . . . . . . . . . Impact Corruptions . | . . . . . . . . . . . . . . . Robots Melted 2 | . . . . . . . . . . 2 . . . . Combat Hostiles 2 | . . . . . . . . . . 2 . . . . Parts Melted 20 | . . . 3 . . 3 . 6 2 6 . . . . Heat Transferred 9067 | . 100 . 1604 111 . 407 999 1739 370 2960 185 592 . . Parts Sabotaged . | . . . . . . . . . . . . . . . Parts Stolen . | . . . . . . . . . . . . . . . Parts Stripped . | . . . . . . . . . . . . . . . Power Chain Reactions 1 | . . . 1 . . . . . . . . . . . Alert | -11 -10 -10 -9 -9 -9 -8 -8 -8 -8 -7 -7 -7 -7 -6 ------- Run | Yrd Mat Min Mat Min Exi Min Mat Sto Gar Fac Low Low Zio Pro Maximum Alert Level 1 | . 1 . . . . . . 1 1 1 . . . . Low Security (%) 85 | 100 98 100 100 100 . 100 100 52 14 93 . . . . Level 1 14 | . 1 . . . . . . 47 85 6 . . . . Level 2 . | . . . . . . . . . . . . . . . Level 3 . | . . . . . . . . . . . . . . . Level 4 . | . . . . . . . . . . . . . . . Level 5 . | . . . . . . . . . . . . . . . High Security . | . . . . . . . . . . . . . . . Max Security . | . . . . . . . . . . . . . . . Peak Influence 407 | 10 207 69 154 24 . 106 88 339 407 261 . . . . Initial 213 | . . 69 9 24 . . . 5 198 213 . . . . Average 80 | 1 97 27 31 1 . 14 15 164 286 72 . . . . Influence Increases 4394 | 20 628 56 631 21 . 137 265 694 259 629 279 375 . 400 Destroy 0b10 Robot/C 2220 | . 260 40 360 20 . 100 140 360 80 300 180 340 . 40 Destroy 0b10 Robot/NC 195 | 20 40 . 40 . . . 25 30 . 40 . . . . Destroy Leader 540 | . 68 10 120 . . 20 56 128 . 98 20 20 . . Allied During Kill 178 | . . 6 2 . . . . 144 17 5 4 . . . Trap Triggered on 0b10 80 | . . . . . . . . 10 . 70 . . . . Successful Hack 239 | . 47 . 67 . . . 40 14 12 59 . . . . Select Force Hacks 30 | . 30 . . . . . . . . . . . . . Disable Machine 165 | . 120 . 30 . . . . . . 15 . . . . Anti-Garrison Action 150 | . . . . . . . . . 150 . . . . . Destroy Structure 87 | . 18 . 12 1 . 17 4 8 . 27 . . . . Partial Spotted 15 | . 15 . . . . . . . . . . . . . Lose Combat Pursuer 495 | . 30 . . . . . . . . 15 75 15 . 360 Influence Decreases 4148 | 20 449 209 595 83 . 137 252 402 157 827 432 424 7 154 Entered New Map 570 | . . 110 17 38 . . . 8 107 194 78 11 7 . Time Decay 3029 | 20 449 99 408 45 . 137 252 384 . 563 314 270 . 88 Lost Part 208 | . . . . . . . . 10 . . . 138 . 60 Lost Ally 191 | . . . 20 . . . . . 50 70 40 5 . 6 Purge Threat 150 | . . . 150 . . . . . . . . . . . Squads Dispatched 15 | . 3 . 1 . . . . . . 10 . . . 1 Investigation 3 | . 1 . 1 . . . . . . 1 . . . . Extermination 7 | . . . . . . . . . . 7 . . . . Reinforcement 3 | . 2 . . . . . . . . 1 . . . . Assault 1 | . . . . . . . . . . . . . . 1 Garrison 1 | . . . . . . . . . . 1 . . . . Intercept . | . . . . . . . . . . . . . . . Searches Triggered . | . . . . . . . . . . . . . . . Construction Impeded . | . . . . . . . . . . . . . . . Haulers Reinforced . | . . . . . . . . . . . . . . . Active Scanning Responses . | . . . . . . . . . . . . . . . Cargo Convoy Interrupts . | . . . . . . . . . . . . . . . Stealth | -11 -10 -10 -9 -9 -9 -8 -8 -8 -8 -7 -7 -7 -7 -6 --------- Run | Yrd Mat Min Mat Min Exi Min Mat Sto Gar Fac Low Low Zio Pro Distress Signals 4 | . 1 . . . . . . 3 . . . . . . Communications Jammed . | . . . . . . . . . . . . . . . Distress Signals . | . . . . . . . . . . . . . . . Times Spotted 181 | . 26 2 23 8 . 5 13 22 4 20 13 23 . 22 Peak Tracking Total 12 | . 4 2 4 1 . 4 3 5 2 5 7 7 . 12 Tactical Retreats 20 | . 2 . . 5 . . . . . 1 5 1 . 6 Traps | -11 -10 -10 -9 -9 -9 -8 -8 -8 -8 -7 -7 -7 -7 -6 ------- Run | Yrd Mat Min Mat Min Exi Min Mat Sto Gar Fac Low Low Zio Pro Traps Triggered 2 | . . . . . . . 1 . 1 . . . . . Indirectly . | . . . . . . . . . . . . . . . Trap Hack Attempts 108 | . . . . . . . . 65 . 43 . . . . Triggered . | . . . . . . . . . . . . . . . Disarmed 2 | . . . . . . . . 1 . 1 . . . . Reprogrammed 26 | . . . 6 . . . . 11 . 9 . . . . Reused 8 | . . . . . . . . 1 . 7 . . . . Traps Extracted . | . . . . . . . . . . . . . . . Installed 4 | . . . 4 . . . . . . . . . . . Triggered 8 | . . . . . . . . 1 . 7 . . . . Most Traps Carried 5 | . . 5 5 . . . . . . . . . . . Machines | -11 -10 -10 -9 -9 -9 -8 -8 -8 -8 -7 -7 -7 -7 -6 ---------- Run | Yrd Mat Min Mat Min Exi Min Mat Sto Gar Fac Low Low Zio Pro Machines Disabled 13 | . 8 . 2 . . . . . 1 1 1 . . . Max in Single Turn 8 | . 8 . 2 . . . . . 1 1 1 . . . Garrison Relay 1 | . . . . . . . . . 1 . . . . . Machines Repaired . | . . . . . . . . . . . . . . . Machines Dismantled . | . . . . . . . . . . . . . . . Machines Sabotaged . | . . . . . . . . . . . . . . . Overloaded Fab Kills . | . . . . . . . . . . . . . . . Hacking | -11 -10 -10 -9 -9 -9 -8 -8 -8 -8 -7 -7 -7 -7 -6 --------- Run | Yrd Mat Min Mat Min Exi Min Mat Sto Gar Fac Low Low Zio Pro Machines Accessed 58 | . 9 1 11 . 2 . 8 13 2 12 . . . . Terminals 31 | . 6 . 7 . . . 5 8 2 3 . . . . Fabricators 2 | . . . . . . . . . . 2 . . . . Repair Stations 8 | . 1 . 2 . . . . 2 . 3 . . . . Recycling Units 8 | . 2 . . . . . 2 2 . 2 . . . . Scanalyzers 4 | . . . 2 . . . 1 . . 1 . . . . Garrison Access 2 | . . . . . . . . 1 . 1 . . . . Total Hacks 212 | . 24 1 47 . 10 . 45 41 3 41 . . . . Successful 154 | . 18 1 38 . 10 . 32 25 1 29 . . . . Failed 56 | . 6 . 8 . . . 12 16 2 12 . . . . Catastrophic 3 | . 1 . . . . . 1 . . 1 . . . . Database Lockouts 2 | . . . 1 . . . 1 . . . . . . . Manual 107 | . 14 . 19 . 1 . 36 24 . 11 . . 2 . Terminals 119 | . 16 . 28 . . . 36 22 3 14 . . . . Fabricators 4 | . . . . . . . . . . 4 . . . . Repair Stations 34 | . 3 . 9 . . . . 10 . 12 . . . . Recycling Units 22 | . 5 . . . . . 6 6 . 5 . . . . Scanalyzers 17 | . . . 10 . . . 3 . . 4 . . . . Garrison Access 5 | . . . . . . . . 3 . 2 . . . . Terminal Hacks 44 | . 3 1 8 . 10 . 14 3 1 4 . . . . Record 9 | . . . . . 9 . . . . . . . . . Part Schematic 2 | . . . . . . . 1 1 . . . . . . Robot Analysis 4 | . . . . . . . 3 1 . . . . . . Prototype ID Bank 8 | . 2 . 1 . . . 3 . . 2 . . . . Open Door 2 | . . 1 . . . . . 1 . . . . . . Branch Access Points 1 | . . . . . . . 1 . . . . . . . Emergency Access Points 1 | . . . . . . . 1 . . . . . . . Terminal Index 2 | . . . 1 . . . 1 . . . . . . . Recycling Unit Index 1 | . . . 1 . . . . . . . . . . . Unreport Threat 1 | . . . 1 . . . . . . . . . . . Reprogram Traps 3 | . . . 1 . . . 1 . . 1 . . . . Recall Extermination 1 | . . . . . . . . . . 1 . . . . Hauler Manifests 1 | . . . 1 . . . . . . . . . . . Registered Components 3 | . 1 . 1 . . . 1 . . . . . . . Registered Prototypes 1 | . . . 1 . . . . . . . . . . . Zone Layout 2 | . . . . . . . 2 . . . . . . . Garrison Registry 1 | . . . . . . . . . 1 . . . . . Proto ID Catalog 1 | . . . . . 1 . . . . . . . . . Fabricator Hacks 1 | . . . . . . . . . . 1 . . . . Build 1 | . . . . . . . . . . 1 . . . . Repair Station Hacks 31 | . 2 . 8 . . . . 10 . 11 . . . . Scan Component 16 | . 1 . 4 . . . . 5 . 6 . . . . Repair 15 | . 1 . 4 . . . . 5 . 5 . . . . Recycling Unit Hacks 8 | . 2 . . . . . 2 2 . 2 . . . . Report Inventory 2 | . . . . . . . 2 . . . . . . . Retrieve Components 6 | . 2 . . . . . . 2 . 2 . . . . Scanalyzer 15 | . . . 8 . . . 3 . . 4 . . . . Insert Component 5 | . . . 3 . . . 1 . . 1 . . . . Analyze 5 | . . . 2 . . . 1 . . 2 . . . . Retrieve Study 5 | . . . 3 . . . 1 . . 1 . . . . Garrison Access Hacks 2 | . . . . . . . . 1 . 1 . . . . Unlock Access 2 | . . . . . . . . 1 . 1 . . . . Unauthorized Hacks 53 | . 11 . 14 . . . 13 9 . 6 . . . . Terminals 44 | . 9 . 12 . . . 10 8 . 5 . . . . Assimilate 3 | . 1 . . . . . 1 1 . . . . . . Botnet 15 | . 2 . 5 . . . 4 2 . 2 . . . . Operators 2 | . 1 . 1 . . . . . . . . . . . Skim 24 | . 5 . 6 . . . 5 5 . 3 . . . . Fabricators 1 | . . . . . . . . . . 1 . . . . Fabnet 1 | . . . . . . . . . . 1 . . . . Repair Stations 1 | . . . 1 . . . . . . . . . . . Mechanics 1 | . . . 1 . . . . . . . . . . . Recycling Units 6 | . 2 . . . . . 3 1 . . . . . . Reject 1 | . . . . . . . 1 . . . . . . . Mask 4 | . 1 . . . . . 2 1 . . . . . . Tunnel 1 | . 1 . . . . . . . . . . . . . Scanalyzers 1 | . . . 1 . . . . . . . . . . . Researchers 1 | . . . 1 . . . . . . . . . . . Garrison Access . | . . . . . . . . . . . . . . . Data Cores Recovered . | . . . . . . . . . . . . . . . Used . | . . . . . . . . . . . . . . . Hacking Detections 50 | . 9 . 9 . . . 7 12 1 12 . . . . Full Trace Events 2 | . 1 . 1 . . . . . . . . . . . Feedback Events . | . . . . . . . . . . . . . . . Feedback Blocked . | . . . . . . . . . . . . . . . Robot Schematics Acquired . | . . . . . . . . . . . . . . . Robots Built . | . . . . . . . . . . . . . . . Authchips . | . . . . . . . . . . . . . . . Time . | . . . . . . . . . . . . . . . Total Robot Build Rating . | . . . . . . . . . . . . . . . Part Schematics Acquired 6 | . . . 2 . . . 2 1 . 1 . . . . Parts Built 2 | . . . . . . . . . . 2 . . . . Authchips . | . . . . . . . . . . . . . . . Time 95 | . . . . . . . . . . 95 . . . . Total Part Build Rating 10 | . . . . . . . . . . 10 . . . . Part Studies Acquired 5 | . . . 3 . . . 1 . . 1 . . . . Parts Repaired 15 | . 1 . 4 . . . . 5 . 5 . . . . Time 571 | . 26 . 153 . . . . 203 . 189 . . . . Parts Recycled . | . . . . . . . . . . . . . . . Recycled Matter . | . . . . . . . . . . . . . . . Retrieved Matter . | . . . . . . . . . . . . . . . Retrieved Components 35 | . 19 . . . . . . 13 . 3 . . . . Parts Scanalyzed 4 | . . . 2 . . . 1 . . 1 . . . . Part Schematics Acquired 4 | . . . 2 . . . 1 . . 1 . . . . Parts Damaged . | . . . . . . . . . . . . . . . Bothacking | -11 -10 -10 -9 -9 -9 -8 -8 -8 -8 -7 -7 -7 -7 -6 ------------ Run | Yrd Mat Min Mat Min Exi Min Mat Sto Gar Fac Low Low Zio Pro Used RIF Installer . | . . . . . . . . . . . . . . . Robots Hacked 4 | . . . . . . . . 2 . 1 . . . 1 Non-combat 3 | . . . . . . . . 2 . 1 . . . . Combat 1 | . . . . . . . . . . . . . . 1 Robot Hacks Applied 3 | . . . . . . . . 2 . 1 . . . . no_distress 1 | . . . . . . . . 1 . . . . . . find_recycling 2 | . . . . . . . . 1 . 1 . . . . Relay Couplers Released 5 | . . . . . . . . . 5 . . . . . Machine Destruction 5 | . . . . . . . . . 5 . . . . . Fabnet Peak Effective % 3 | . . . . . . . . . . . . . . 3 Autooverrided 1 | . . . . . . . . . . . . . . 1 Robots Rewired 4 | . . . . . . . . . . . 2 2 . . Allies Hacked . | . . . . . . . . . . . . . . . Hacks Repelled . | . . . . . . . . . . . . . . . Allies | -11 -10 -10 -9 -9 -9 -8 -8 -8 -8 -7 -7 -7 -7 -6 -------- Run | Yrd Mat Min Mat Min Exi Min Mat Sto Gar Fac Low Low Zio Pro Total Allies 18 | . . 2 . . . . 1 10 . . 2 2 . 1 Largest Group 11 | . . 2 2 . . . 1 11 6 1 2 2 . 1 Highest-Rated Group 183 | . . 45 45 . . . 10 183 103 16 64 52 . 30 Highest-Rated Ally 32 | . . 31 31 . . . 10 29 29 16 32 32 . 30 Initial Warlord ECA Mod 2 | . . . . . . . . . . 2 2 2 2 1 Total Orders 36 | . . . . . . . 2 10 8 13 3 . . . STAY 12 | . . . . . . . 1 5 4 . 2 . . . ROAM 1 | . . . . . . . . 1 . . . . . . FOLLOW 10 | . . . . . . . 1 4 4 . 1 . . . EXPLORE 13 | . . . . . . . . . . 13 . . . . Ally Attacks 88 | . . 5 7 . . . . 26 23 12 8 5 . 2 Total Damage 1351 | . . 61 38 . . . . 279 243 125 321 256 . 28 Kills 11 | . . 2 1 . . . . 6 1 . 1 . . . Allies Corrupted 1 | . . . . . . . . . 1 . . . . . Allies Melted . | . . . . . . . . . . . . . . . Intel | -11 -10 -10 -9 -9 -9 -8 -8 -8 -8 -7 -7 -7 -7 -6 ------- Run | Yrd Mat Min Mat Min Exi Min Mat Sto Gar Fac Low Low Zio Pro Active Infowar (turns) 5950 | 74 2068 272 1577 798 242 539 . . . . 222 158 . . Seismic 5570 | 74 2068 272 1577 798 242 539 . . . . . . . . Cloaking 380 | . . . . . . . . . . . 222 158 . . Robot Analysis Total 4 | . . . . . . . 3 1 . . . . . . Derelict Logs Recovered 8 | . . 2 . 1 . . . . . . . 2 1 2 Drone Launches 16 | . . . . . . . . . . 16 . . . . Drone Recoveries . | . . . . . . . . . . . . . . . Exploration | -11 -10 -10 -9 -9 -9 -8 -8 -8 -8 -7 -7 -7 -7 -6 ------------- Run | Yrd Mat Min Mat Min Exi Min Mat Sto Gar Fac Low Low Zio Pro Turns Passed 18263 | 152 2068 272 2514 1196 548 1068 1485 1844 1200 3245 790 649 572 660 Spaces Moved 8476 | 72 948 129 705 500 272 492 628 798 282 980 483 396 1140 651 Core 22 | 8 . . . . . . . . . . . 14 . . Treads 6596 | 64 948 129 705 500 272 492 628 798 282 980 483 315 . . Legs . | . . . . . . . . . . . . . . . Wheels . | . . . . . . . . . . . . . . . Hover . | . . . . . . . . . . . . . . . Flight 1858 | . . . . . . . . . . . . 67 1140 651 Fastest Speed 32 | 50 160 160 160 160 160 200 160 145 145 145 145 35 35 32 Average Speed 136 | 151 160 200 189 174 199 200 160 155 145 145 145 125 37 35 Slowest Speed 250 | 160 160 240 240 200 200 200 160 160 145 145 148 250 42 42 Overloaded Moves . | . . . . . . . . . . . . . . . Propulsion Burnouts . | . . . . . . . . . . . . . . . Robots Hopped 1 | . . . . . . . . . . . . . . 1 Potential Cave-ins . | . . . . . . . . . . . . . . . Cave-ins Triggered . | . . . . . . . . . . . . . . . Exploration Rate (%) 63 | 4 97 38 59 96 61 86 67 95 29 37 62 49 86 80 Regions Visited 14 Branch Regions 9 Pre-discovered Areas 8 | . 1 1 . 2 . . . . . . 1 . 2 1 Known Exits Taken 8 | . . 1 1 . . 1 1 1 . 1 1 1 . . Unknown Exits Taken 5 | 1 1 . . 1 1 . . . . . . . 1 . Scrap Searched 9 | . . 1 . 1 . . . . . . 2 . 3 2 Spaces Dug . | . . . . . . . . . . . . . . . Terrain Destroyed 159 | . 24 . 7 . . 20 5 8 . 28 43 24 . . Melee . | . . . . . . . . . . . . . . . Projectile 26 | . . . . . . 7 5 8 . 2 1 3 . . AOE 133 | . 24 . 7 . . 13 . . . 26 42 21 . . Terrain Rammed . | . . . . . . . . . . . . . . . Walls Destroyed . | . . . . . . . . . . . . . . . Machines Disabled . | . . . . . . . . . . . . . . . Actions | -11 -10 -10 -9 -9 -9 -8 -8 -8 -8 -7 -7 -7 -7 -6 --------- Run | Yrd Mat Min Mat Min Exi Min Mat Sto Gar Fac Low Low Zio Pro Total 14684 | 104 1369 141 1774 825 278 570 1115 1392 1059 2693 537 478 1278 1071 Wait 5414 | 14 315 3 916 299 . 70 442 469 766 1559 16 14 119 412 Move 8460 | 71 947 128 704 499 271 491 627 797 281 979 482 395 1139 649 Hop 1 | . . . . . . . . . . . . . . 1 Pick Up 90 | 4 10 7 18 7 . . 15 10 2 10 2 2 3 . Fast Attach 49 | 7 3 . 6 . 1 . 2 5 . 12 2 . 9 2 Attach 33 | . . . 5 . . . 4 1 2 4 . 13 2 2 Detach 5 | . . . 2 . 1 . 1 . . . . . 1 . Swap 101 | 1 12 1 30 7 2 5 2 13 . 14 11 3 . . Drop 113 | . 15 1 32 8 3 . 16 12 1 16 3 1 5 . Fire 275 | 7 67 1 56 5 . 4 6 16 7 49 16 38 . 3 Melee 8 | . . . 1 . . . . 4 . 1 . . . 2 Ram . | . . . . . . . . . . . . . . . Kick . | . . . . . . . . . . . . . . . Crush 6 | . . . . . . . . . . 6 . . . . Escape Stasis . | . . . . . . . . . . . . . . . Rewire 17 | . . . . . . . . . . . 5 12 . . Trap 112 | . . . 4 . . . . 65 . 43 . . . . Miscellaneous . | . . . . . . . . . . . . . . . Route ------- -11/Scrapyard -10/Materials (discovered 5 exits: *Mat x3 / *Min / Sub) -10/Mines (discovered 2 exits: *Mat x2) -9/Materials (discovered 4 exits: *Mat x2 / *Min x2) -9/Mines (discovered 4 exits: *Mat x2 / *Exi / *Zio) -9/Exiles -8/Mines -8/Materials (discovered 4 exits: *Fac x2 / *Sto x2) -8/Storage (discovered 3 exits: *Fac / [*Rec] / Gar) -8/Garrison (discovered 3 exits: *Fac x3) -7/Factory (discovered 6 exits: Fac x3 / *Low x2 / Gar) -7/Lower Caves -7/Lower Caves (discovered 2 exits: *Fac / *Zio) -7/Zion -6/Proximity Caves History --------- Turn | Location | Event 7 | -11/Scrapyard | Discovered new exit (range 16) 153 | -11/Scrapyard | Entered Materials 300 | -10/Materials | Build established: Mutant 611 | -10/Materials | Discovered new exit (range 16) 688 | -10/Materials | Discovered new exit (range 12) 900 | -10/Materials | Discovered new exit (range 11) 970 | -10/Materials | Learned Storage terminal intel 1016 | -10/Materials | Identified exit to Materials 1050 | -10/Materials | Learned Storage stockpile data 1091 | -10/Materials | Learned Storage trap positions 1118 | -10/Materials | Identified exit to Subcaves 1472 | -10/Materials | Core integrity fell below 50% 1704 | -10/Materials | Build established: Scavenger-Mutant 1914 | -10/Materials | Repaired Lgt. Treads 2221 | -10/Materials | Entered Mines 2231 | -10/Mines | Learned location of Zion (-7) 2234 | -10/Mines | Learned 4 Materials zone layouts 2306 | -10/Mines | Found a hidden stash of uninstalled traps 2391 | -10/Mines | Found the Drone Emporium 2402 | -10/Mines | Found Prototype Device 2493 | -10/Mines | Entered Materials 2493 | -9/Materials | Accompanied by 2 allies 2493 | -9/Materials | Evolved 2 slots: Utility x1, Weapon x1 2494 | -9/Materials | Identified exit to Materials 2498 | -9/Materials | Led the pair of lost Derelicts to an unsafe place 2859 | -9/Materials | Build established: Scavenger-Gunner 2880 | -9/Materials | Identified Decoy Drone Bay 2880 | -9/Materials | Central database locked down 3386 | -9/Materials | Repaired Beamcaster 3413 | -9/Materials | Repaired Seismic Detector 4557 | -9/Materials | Learned Storage security intel 4615 | -9/Materials | Learned Storage emergency access door positions 4629 | -9/Materials | Learned 4 Materials zone layouts 4635 | -9/Materials | Identified exit to Mines 4653 | -9/Materials | Learned 4 Recycling zone layouts 4681 | -9/Materials | Learned Materials security intel 4856 | -9/Materials | Repaired Cld. Ion Engine 4884 | -9/Materials | Repaired Lgt. Treads+ 5007 | -9/Materials | Entered Mines 5008 | -9/Mines | Assembled infested the area 5031 | -9/Mines | Found a damaged Exp. Sensor Array with a note attached 5034 | -9/Mines | Found Prototype Device 5052 | -9/Mines | A Derelict revealed a hidden shortcut to a safe place 5160 | -9/Mines | A weapon hastily lodged in a ceiling crevice suddenly fell to the ground 5239 | -9/Mines | Discovered exit to Materials (range 9) 5713 | -9/Mines | Discovered exit to Materials (range 9) 5795 | -9/Mines | Joined a pair of Derelicts in attacking an 0b10 outpost 6044 | -9/Mines | Learned location of Storage (-8) 6096 | -9/Mines | Build established: Scavenger-Tank 6107 | -9/Mines | Deemed a non-threat by the Exiles lab entrance 6195 | -9/Mines | Discovered new exit (range 5) 6203 | -9/Mines | Entered Exiles 6255 | -9/Exiles | Met 8R-AWN 6287 | -9/Exiles | Met EX-HEX 6343 | -9/Exiles | Met EX-BIN 6451 | -9/Exiles | Aligned with FarCom system 6453 | -9/Exiles | Given EX-Vault access code 6499 | -9/Exiles | Opened EX-Vault 6514 | -9/Exiles | Found AWS/Thermal 6558 | -9/Exiles | Warned to stay clear of 0b10 Research branches 6618 | -9/Exiles | Met EX-DEC 6725 | -9/Exiles | Discovered new exit (range 14) 6751 | -9/Exiles | Left Exiles lab with AWS/Thermal 6751 | -9/Exiles | Entered Mines 7068 | -8/Mines | Build established: Scavenger-Skirmisher 7337 | -8/Mines | Core integrity fell below 50% 7645 | -8/Mines | Build established: Skirmisher 7801 | -8/Mines | Discovered exit to Materials (range 10) 7819 | -8/Mines | Entered Materials 7819 | -8/Materials | Evolved 2 slots: Propulsion x1, Utility x1 7820 | -8/Materials | Identified exit to Factory 8142 | -8/Materials | Build established: Scavenger-Skirmisher 8437 | -8/Materials | Identified Exp. Sensor Array 8519 | -8/Materials | Build established: Scavenger-Tank 8876 | -8/Materials | Discovered new exit (range 15) 9026 | -8/Materials | Discovered exit to Factory (range 14) 9030 | -8/Materials | Identified exit to Storage 9124 | -8/Materials | Build established: Scavenger-Skirmisher 9260 | -8/Materials | Central database locked down 9304 | -8/Materials | Entered Storage 9304 | -8/Storage | Accompanied by 1 ally 9305 | -8/Storage | Loaded intel: 16 trap records 9308 | -8/Storage | Loaded intel: 11 terminal locations 9435 | -8/Storage | Identified exit to Garrison 9609 | -8/Storage | Build established: Scavenger-Mutant 9906 | -8/Storage | Watched by a mysterious "MATRIX" hacker 10233 | -8/Storage | Assisted by bots powering up and referring to "LRC-V3" 10360 | -8/Storage | Repaired Lgt. Treads+ 10387 | -8/Storage | Discovered exit to Factory (range 12) 10578 | -8/Storage | Lost 5 allies 10617 | -8/Storage | Used back door to open Recycling access 10617 | -8/Storage | Discovered new exit (range 5) 10770 | -8/Storage | Repaired Adv. Treads 10797 | -8/Storage | Learned location of 3 exits from Factory 10810 | -8/Storage | Repaired Adv. Treads 10849 | -8/Storage | Learned location of 2 exits from Lower Caves 10850 | -8/Storage | Build established: Commander-Skirmisher 10862 | -8/Storage | Repaired Hvy. Ion Engine 10893 | -8/Storage | Learned Factory recycling unit intel 10914 | -8/Storage | Repaired Beamcaster 10926 | -8/Storage | Learned Factory trap positions 11023 | -8/Storage | Learned location of 1 exit from Extension 11148 | -8/Storage | Entered Garrison 11148 | -8/Garrison | Accompanied by 6 allies 11314 | -8/Garrison | Triggered checkpoint 11314 | -8/Garrison | AWS/Thermal suddenly broke down 11353 | -8/Garrison | Discovered exit to Factory (range 53) 11353 | -8/Garrison | Discovered exit to Factory (range 78) 11353 | -8/Garrison | Discovered exit to Factory (range 50) 11358 | -8/Garrison | Lost 3 allies 11401 | -8/Garrison | Garrison Relay disabled 11506 | -8/Garrison | Triggered checkpoint 11604 | -8/Garrison | Build established: Skirmisher 12348 | -8/Garrison | Entered Factory 12348 | -7/Factory | Accompanied by 1 ally 12348 | -7/Factory | Evolved 2 slots: Propulsion x1, Utility x1 12349 | -7/Factory | Identified exit to Lower Caves 12350 | -7/Factory | Identified exit to Factory 12351 | -7/Factory | Loaded intel: 80 trap records 12352 | -7/Factory | Loaded intel: 6 recycling unit locations 12625 | -7/Factory | Fabricated Cloaking Device (x2) 12712 | -7/Factory | Lost 3 allies 13208 | -7/Factory | Build established: Scavenger-Skirmisher 13387 | -7/Factory | Repaired Coolant Injector 13427 | -7/Factory | Repaired Adv. Treads 13478 | -7/Factory | Repaired Beamcaster 13518 | -7/Factory | Repaired Adv. Treads 13542 | -7/Factory | Garrison activated, responded to threat 13691 | -7/Factory | Identified exit to Garrison 14164 | -7/Factory | Repaired Hrd. Medium Armor Plating 14493 | -7/Factory | Build established: Skirmisher 15593 | -7/Factory | Entered Lower Caves 15594 | -7/Lower Caves | Identified exit to Lower Caves 15600 | -7/Lower Caves | Attracted the attention of an 0b10 outpost 15707 | -7/Lower Caves | Encountered a Warlord checkpoint 15716 | -7/Lower Caves | Met a Warlord Commander 15717 | -7/Lower Caves | Learned location of Warlord (-4) 15718 | -7/Lower Caves | Warlord Commander delivered Encrypted Comm Array 15719 | -7/Lower Caves | Found Encrypted Comm Array 15984 | -7/Lower Caves | Spotted B-75 Beast 16383 | -7/Lower Caves | Entered another Lower Caves area 16384 | -7/Lower Caves | Identified exit to Zion 16441 | -7/Lower Caves | Discovered exit to Factory (range 15) 16698 | -7/Lower Caves | Attracted the attention of an 0b10 outpost 16765 | -7/Lower Caves | Destroyed 7 combat bots 16770 | -7/Lower Caves | Lost 9 parts (1p3n2u3w) 16835 | -7/Lower Caves | Learned Factory garrison access intel 16851 | -7/Lower Caves | Spotted B-75 Beast 16954 | -7/Lower Caves | Lost 5 parts (3n2w) 16992 | -7/Lower Caves | Core integrity fell below 50% 17032 | -7/Lower Caves | Entered Zion 17033 | -7/Zion | Lost 6 parts (1p2n2u1w) 17062 | -7/Zion | Found CR-A16's Pointy Stick 17071 | -7/Zion | System corruption cleaned by Quarantine Array 17280 | -7/Zion | Given A8's code to call for help 17293 | -7/Zion | Build established: Hacker-Mutant 17327 | -7/Zion | Found Prototype Device 17327 | -7/Zion | Identified Bomb Factory No. 2 17405 | -7/Zion | Rebuked by Imprinter 17482 | -7/Zion | Received a visual enhancement algorithm 17482 | -7/Zion | Learned Factory trap positions 17483 | -7/Zion | Ran a visual enhancement algorithm 17486 | -7/Zion | Ran a visual enhancement algorithm 17516 | -7/Zion | Found Prototype Device 17516 | -7/Zion | Identified Phasing AFG 17598 | -7/Zion | Discovered new exit (range 10) 17604 | -7/Zion | Entered Proximity Caves 18023 | -6/Proximity Caves | Core integrity fell below 20% 18028 | -6/Proximity Caves | Attracted the attention of an 0b10 checkpoint 18106 | -6/Proximity Caves | Learned location of Extension (-4) 18114 | -6/Proximity Caves | Learned location of 1 exit from Factory 18141 | -6/Proximity Caves | Attracted the attention of an 0b10 outpost 18254 | -6/Proximity Caves | Spotted B-75 Beast 18264 | -6/Proximity Caves | Destroyed by B-75 Beast with Heavy Plasma Cannon Last Messages --------------- 18108_ Acquired 28 matter. 18108_ Acquired Focal Shield. 18109_ S-27 Virus suffers critical hit (Destroy). 18110_ Acquired 7 matter. 18114_ Acquired derelict log, extracted data. Data stored: Factory exits (x1). 18122_ Lyr. Light Armor Plating destroyed. 18122_ Mak. Shrapnel Gun destroyed. 18141_ Y-64 Sentinel: "DETECTED UNIDENTIFIED DERELICT." 18141_ Slug penetrates Wall. 18145_ Y-64 Sentinel: "REQUESTING BACKUP." 18157_ Mak. Shrapnel Gun destroyed. [Achievement: Slippery One] 18242_ Acquired 10 matter. 18260_ Spear follow-up attack on B-75 Beast. 18261_ Lgt. Nuclear Core destroyed. 18261_ Knocked back. 18261_ Mak. Flight Unit destroyed. Map ----- +----------------------------------------------------+ | ?????????????????????????????????????????????????? | | ?????????????????????????????????????????????????? | | ?????????????????????????????????????????????????? | | ?????????????????????????????????????????????????? | | ?????????????????????????????????????????????????? | | ?????????????????????????????????????????????????? | | ?????????????????????????????????????????????????? | | ?????????????????????????????????????????????????? | | ?????????????????????????????????????????????????? | | ?????????????????????????????????????????????????? | | ?????????????????????????????????????????????????? | | ?????????????????????????????????????????????????? | | ?????????????????????????????????????????????????? | | ?????????????????????????????????????????????????? | | ?????????????????????????????????????????????????? | | ?????????????????????????????????????????????????? | | ?????????????????????????????????????????????????? | | ?????????????????????????????????????????????????? | | ###??????????????????????????????????????????????? | | # ##????????????????###??????????????????????????? | | #???????????????## ###??????#?????????????????? | | ################# ###### #?????????????????? | | # % #?????????????????? | | #?????????????????? | | ##################;% BB ##?????????????????? | | ##????????????????## @BB #??????????????????? | | #####??????????????????# #??????????????????? | | ???????????????????????# #??????????????????? | | ???????????????????????########??????????????????? | | ?????????????????????????????????????????????????? | | ?????????????????????????????????????????????????? | | ?????????????????????????????????????????????????? | | ?????????????????????????????????????????????????? | | ?????????????????????????????????????????????????? | | ?????????????????????????????????????????????????? | | ?????????????????????????????????????????????????? | | ?????????????????????????????????????????????????? | | ?????????????????????????????????????????????????? | | ?????????????????????????????????????????????????? | | ?????????????????????????????????????????????????? | | ?????????????????????????????????????????????????? | | ?????????????????????????????????????????????????? | | | | | | | | | | | | | | | | | +----------------------------------------------------+ Best States ------------- Heat Dissipation 42 Coolant Potential 65 Energy Generation 23 Energy Capacity 290 Matter Stores 300 Matter Capacity 300 Sight Range 16 Terrain Scan Density 10 Cloak Strength 2 Armor Coverage 225 Resistance: KI 20 Evasion (%) 63 Targeting Accuracy 8 Recoil Reduction 4 Offensive Hacking 21 Defensive Hacking 31 Item Schematics ----------------- Hrd. Light Armor Plating | -9/Materials | Scanalyzed Seismic Detector | -9/Materials | Scanalyzed Exp. Sensor Array | -8/Materials | Scanalyzed Hacking Suite | -8/Materials | Hacked System Shield | -8/Storage | Hacked Adv. Treads | -7/Factory | Scanalyzed Robot Schematics ------------------ None Fabricated ------------ Cloaking Device | x2 | -7/Factory | Preloaded Repaired ---------- Lgt. Treads | 62% | -10/Materials Beamcaster | 63% | -9/Materials Seismic Detector | 30% | -9/Materials Cld. Ion Engine | 74% | -9/Materials Lgt. Treads | 71% | -9/Materials Lgt. Treads | 68% | -8/Storage Adv. Treads | 91% | -8/Storage Adv. Treads | 92% | -8/Storage Hvy. Ion Engine | 84% | -8/Storage Beamcaster | 77% | -8/Storage Coolant Injector | 22% | -7/Factory Adv. Treads | 70% | -7/Factory Beamcaster | 64% | -7/Factory Adv. Treads | 81% | -7/Factory Hrd. Medium Armor Plating | 67% | -7/Factory Studied --------- Lgt. Treads | -9/Materials | Hacked Autogun | -9/Materials | Hacked Assault Rifle | -9/Materials | Hacked Rocket Launcher | -8/Materials | Hacked Gauss Rifle | -7/Factory | Hacked Alien Tech Used ----------------- None Achievements -------------- Hehehe I Like You, Cogmind Oppo Buddy Release The Drones! Slippery One Challenges ------------ None Game ------ Seed IonicKineticAutobeam Manual? 0 Play Time 02:49:26 Cumulative 47.7 hours Start 2026.08.21 @ 16:51:20 End 2026.08.21 @ 22:49:09 Sessions 1 Manual Loads 0 Difficulty Rogue Special Mode None Game No. 27 Rogue 27 Adventurer 0 Explorer 0 Win Type - Total 0 Types 0/0/0/0/0/0/0/0/0/0 Lore% 41 Gallery% 32 Achievement% 34 Wizard Run 0 Options --------- Layout 1 ASCII 0 Keyboard 0 Movement Mouse Keybinds 0 Fullscreen 1 Font 24/Smallcaps Map View 50x35 Zoom Use 0% Tactical HUD 1 Map Filters NONE Filters NONE Steam 1 RUN: 6d1faa56-84bd-437b-a98b-dbeb6c0441d5